bitfinex/quotes_SOLUSD_20250212
["timestamp","ask_amount","ask_price","bid_price","bid_amount"]
[1739377817087,0.063,190.4,190.38,31.82002434]
[1739377817293,0.063,190.4,190.38,46.23187287]
[1739377817479,0.063,190.4,190.38,48.83635334]
[1739377817688,8.312e-05,190.4,190.39,15.41184853]
[1739377817863,0.03,190.46,190.42,33.41184853]
[1739377818070,0.03,190.46,190.45,26.56742434]
[1739377818271,0.03,190.46,190.43,46.56742434]
[1739377818490,0.03,190.46,190.44,26.56742434]
[1739377818691,0.03,190.46,190.45,5.2507]
[1739377819193,0.03,190.46,190.45,31.81812434]
[1739377819992,0.03,190.46,190.44,5.2509]
[1739377820782,0.03,190.46,190.41,5.2518]
[1739377821188,26.56742434,190.44,190.41,5.2518]
[1739377821471,26.56742434,190.45,190.41,5.2518]
[1739377821906,0.03,190.46,190.41,5.2518]
[1739377822196,0.03,190.46,190.42,26.56742434]
[1739377822370,0.03,190.46,190.43,26.56742434]
[1739377822571,0.03,190.46,190.44,26.56742434]
[1739377822786,0.03,190.46,190.45,26.56742434]
[1739377823186,0.03,190.46,190.45,34.00232434]
[1739377823385,0.0001,190.46,190.45,48.41417287]
[1739377824024,0.0001,190.46,190.45,48.91613287]
[1739377824172,0.0001,190.49,190.48,21.0]
[1739377824376,0.0001,190.49,190.48,90.150623]
[1739377824593,0.03,190.59,190.54,1.0]
[1739377824878,0.03,190.59,190.55,26.56742434]
[1739377825196,26.56742434,190.58,190.51,26.56742434]
[1739377825384,26.56742434,190.57,190.5,26.56742434]
[1739377825991,26.56742434,190.57,190.49,3.0638296]
[1739377825992,26.56742434,190.58,190.52,5.2487]
[1739377826195,0.03,190.59,190.52,5.2487]
[1739377826196,0.03,190.59,190.53,26.56742434]
[1739377826410,0.03,190.59,190.56,26.56742434]
[1739377826780,0.03,190.59,190.58,26.56742434]
[1739377826981,0.03,190.59,190.58,27.66899634]
[1739377827485,0.03,190.59,190.58,42.08084487]
[1739377828191,0.03,190.59,190.58,47.32794487]
[1739377828712,0.03,190.59,190.58,48.32794487]
[1739377829917,0.03,190.59,190.58,47.32794487]
[1739377830585,0.03,190.59,190.58,32.81452434]
[1739377830792,0.03,190.59,190.58,5.2471]
[1739377831113,0.03,190.59,190.58,32.91612475]
[1739377831407,0.03,190.59,190.58,32.81452434]
[1739377831615,0.03,190.59,190.58,46.22637287]
[1739377831808,26.56742434,190.65,190.58,31.81452434]
[1739377832512,26.56742434,190.63,190.57,5.2474]
[1739377832698,26.56742434,190.63,190.57,31.81482434]
[1739377832900,26.56742434,190.64,190.58,26.56742434]
[1739377833099,26.56742434,190.67,190.6,26.56742434]
[1739377833292,26.56742434,190.67,190.61,26.56742434]
[1739377833494,26.56742434,190.67,190.6,26.56742434]
[1739377833699,26.56742434,190.69,190.62,26.56742434]
[1739377833898,26.56742434,190.7,190.63,26.56742434]
[1739377834098,2.6217,190.72,190.65,26.56742434]
[1739377834099,26.56742434,190.71,190.65,26.56742434]
[1739377834304,26.56742434,190.72,190.66,26.56742434]
[1739377834585,26.56742434,190.7,190.65,5.2452]
[1739377834807,26.56742434,190.69,190.63,31.81292434]
[1739377835007,26.56742434,190.67,190.63,5.2455]
[1739377835230,26.56742434,190.66,190.59,26.56742434]
[1739377835400,26.56742434,190.65,190.58,26.56742434]
[1739377836310,47.06938434,190.7,190.57,5.2474]
[1739377836311,26.56742434,190.61,190.57,5.2474]
[1739377836489,26.56742434,190.6,190.57,5.2474]
[1739377836690,26.56742434,190.58,190.53,5.2485]
[1739377837113,26.56742434,190.59,190.53,5.2485]
[1739377837704,26.56742434,190.56,190.51,5.2488]
[1739377837888,26.56742434,190.53,190.5,15.10915486]
[1739377838088,26.56742434,190.51,190.46,5.2504]
[1739377838415,26.56742434,190.51,190.45,5.2507]
[1739377838786,26.56742434,190.51,190.45,31.81812434]
[1739377839004,26.56742434,190.51,190.45,5.2507]
[1739377839206,26.56742434,190.5,190.45,5.2507]
[1739377839933,26.56742434,190.5,190.44,31.81832434]
[1739377840430,26.56742434,190.49,190.44,5.2509]
[1739377840638,26.56742434,190.5,190.44,5.2509]
[1739377840815,26.56742434,190.52,190.45,26.56742434]
[1739377841014,26.56742434,190.51,190.45,26.56742434]
[1739377841338,26.56742434,190.5,190.43,31.81862434]
[1739377842229,26.56742434,190.49,190.43,5.2512]
[1739377842402,26.56742434,190.52,190.45,26.56742434]
[1739377842608,26.56742434,190.53,190.47,26.56742434]
[1739377842803,26.56742434,190.52,190.45,26.56742434]
[1739377843140,26.56742434,190.5,190.43,31.81862434]
[1739377843318,2.6239,190.55,190.45,26.56742434]
[1739377843319,26.56742434,190.51,190.45,26.56742434]
[1739377843520,26.56742434,190.49,190.43,31.81862434]
[1739377843721,26.56742434,190.49,190.43,5.2512]
[1739377843915,26.56742434,190.48,190.43,5.2512]
[1739377844735,26.56742434,190.47,190.43,5.2512]
[1739377845129,26.56742434,190.51,190.44,26.56742434]
[1739377845432,26.56742434,190.48,190.43,5.2512]
[1739377845635,26.56742434,190.47,190.43,5.2512]
[1739377846030,26.56742434,190.47,190.41,13.1291]
[1739377846729,26.56742434,190.46,190.4,26.56742434]
[1739377847234,26.56742434,190.45,190.39,5.2523]
[1739377847630,26.56742434,190.42,190.39,5.2523]
[1739377848152,26.56742434,190.44,190.38,0.063]
[1739377848312,26.56742434,190.45,190.38,26.63042434]
[1739377848511,26.56742434,190.48,190.41,26.56742434]
[1739377848732,26.56742434,190.49,190.42,26.56742434]
[1739377849252,26.56742434,190.51,190.44,26.56742434]
[1739377849420,20.0,190.52,190.4,13.41184853]
[1739377849615,26.56742434,190.48,190.42,26.56742434]
[1739377850249,26.56742434,190.48,190.4,18.3822]
[1739377850250,26.56742434,190.46,190.4,44.94962434]
[1739377850439,26.56742434,190.45,190.4,18.3822]
[1739377850744,26.56742434,190.42,190.4,5.2521]
[1739377850911,26.56742434,190.41,190.4,0.063]
[1739377852533,27.06938434,190.41,190.4,0.063]
[1739377852818,69.67455721,190.41,190.4,0.063]
[1739377853444,20.50196,190.39,190.38,0.063]
[1739377853653,47.06938434,190.39,190.38,0.063]
[1739377853830,49.69548434,190.39,190.38,0.063]
[1739377854037,63.10733287,190.39,190.38,0.063]
[1739377854437,49.69548434,190.39,190.38,0.063]
[1739377856051,29.19352434,190.39,190.38,0.063]
[1739377856249,26.56742434,190.42,190.38,0.063]
[1739377856544,26.56742434,190.43,190.38,0.063]
[1739377856747,26.56742434,190.45,190.39,26.56742434]
[1739377856955,26.56742434,190.46,190.39,26.56742434]
[1739377857138,26.56742434,190.47,190.41,26.56742434]
[1739377857439,26.56742434,190.49,190.42,26.56742434]
[1739377858053,26.56742434,190.49,190.43,5.2512]
[1739377858245,26.56742434,190.5,190.43,31.81862434]
[1739377858641,26.56742434,190.49,190.43,31.81862434]
[1739377859057,26.56742434,190.51,190.44,27.66979005]
[1739377859556,26.56742434,190.51,190.45,26.56742434]
[1739377859763,26.56742434,190.49,190.43,18.3793]
[1739377859939,26.56742434,190.48,190.43,18.3793]
[1739377860361,26.56742434,190.44,190.43,5.2512]
[1739377860565,26.56742434,190.44,190.39,5.2523]
[1739377860864,0.50196,190.46,190.38,0.063]
[1739377861066,2.6253,190.45,190.38,0.063]
[1739377861235,22.6251,190.47,190.38,0.063]
[1739377861436,2.6249,190.49,190.38,0.063]
[1739377861635,2.6249,190.49,190.38,1.16568022]
[1739377861841,83.3,190.55,190.41,26.56742434]
[1739377861842,26.56742434,190.47,190.41,26.56742434]
[1739377862144,26.56742434,190.52,190.45,26.56742434]
[1739377862338,26.56742434,190.53,190.46,26.56742434]
[1739377862643,26.56742434,190.54,190.47,26.56742434]
[1739377862864,26.56742434,190.55,190.48,26.56742434]
[1739377863065,26.56742434,190.57,190.5,26.56742434]
[1739377863372,26.56742434,190.59,190.52,26.56742434]
[1739377863667,43.03518973,190.59,190.52,43.03518973]
[1739377863963,43.06518973,190.6,190.54,43.03518973]
[1739377864147,43.03518973,190.57,190.5,44.1369345]
[1739377864553,43.03518973,190.56,190.52,20.0]
[1739377864753,0.03,190.6,190.48,62.5116931]
[1739377864754,43.03518973,190.55,190.48,62.5116931]
[1739377864951,43.03518973,190.51,190.48,5.2498]
[1739377865151,43.03518973,190.5,190.45,19.47964763]
[1739377865374,43.03518973,190.49,190.45,5.2507]
[1739377865667,43.03518973,190.48,190.45,5.2507]
[1739377865964,43.03518973,190.49,190.45,5.2507]
[1739377866167,43.03518973,190.52,190.45,49.3882213]
[1739377866350,43.03518973,190.49,190.45,5.2507]
[1739377866556,43.03518973,190.5,190.45,5.2507]
[1739377866944,43.03518973,190.53,190.46,44.13754647]
[1739377867148,43.03518973,190.51,190.45,48.28588973]
[1739377867371,43.03518973,190.48,190.45,5.2507]
[1739377867552,43.03518973,190.51,190.45,5.2507]
[1739377867968,43.03518973,190.52,190.46,1.10226637]
[1739377868271,43.03518973,190.49,190.45,5.2507]
[1739377868437,43.03518973,190.46,190.4,20.48909661]
[1739377868641,43.03518973,190.46,190.41,5.2518]
[1739377868841,43.03518973,190.47,190.41,5.2518]
[1739377869073,43.03518973,190.49,190.42,43.03518973]
[1739377869273,43.03518973,190.5,190.43,44.13766463]
[1739377869443,43.03518973,190.54,190.47,43.03518973]
[1739377869642,43.03518973,190.51,190.45,43.03518973]
[1739377869880,0.50196,190.56,190.44,20.0]
[1739377870065,43.03518973,190.48,190.45,5.2507]
[1739377870241,0.50196,190.53,190.45,5.2507]
[1739377870441,43.03518973,190.48,190.45,5.2507]
[1739377870670,43.03518973,190.47,190.45,5.2507]
[1739377871150,43.03518973,190.48,190.41,56.16468973]
[1739377871350,43.03518973,190.47,190.42,5.2515]
[1739377872168,43.03518973,190.47,190.41,13.1295]
[1739377872169,43.03518973,190.47,190.41,56.16468973]
[1739377872352,43.03518973,190.47,190.41,62.51897636]
[1739377872549,43.03518973,190.48,190.42,43.03518973]
[1739377872745,43.03518973,190.47,190.41,62.51897636]
[1739377872970,43.03518973,190.46,190.41,5.2518]
[1739377873750,0.50196,190.51,190.39,5.3151]
[1739377873751,43.03518973,190.43,190.39,5.3151]
[1739377873951,43.03518973,190.42,190.39,5.3151]
[1739377874474,43.03518973,190.42,190.39,0.063]
[1739377874975,43.03518973,190.43,190.39,0.063]
[1739377875543,43.03518973,190.45,190.39,43.09818973]
[1739377876071,43.03518973,190.44,190.39,0.063]
[1739377876252,43.03518973,190.43,190.39,0.063]
[1739377877256,43.03518973,190.47,190.4,43.03518973]
[1739377877462,43.03518973,190.47,190.41,43.03518973]
[1739377877976,43.03518973,190.43,190.39,0.063]
[1739377878551,43.03518973,190.46,190.39,43.09818973]
[1739377878772,43.03518973,190.47,190.41,43.03518973]
[1739377878953,43.03518973,190.48,190.41,43.03518973]
[1739377879483,43.03518973,190.52,190.45,43.03518973]
[1739377879661,43.03518973,190.52,190.42,1.10254825]
[1739377879662,43.03518973,190.51,190.44,43.03518973]
[1739377879853,43.03518973,190.48,190.41,43.03518973]
[1739377880251,43.03518973,190.5,190.44,43.03518973]
[1739377880445,43.03518973,190.52,190.46,43.03518973]
[1739377880650,43.03518973,190.53,190.46,43.03518973]
[1739377881052,43.03518973,190.54,190.47,43.03518973]
[1739377882162,43.03518973,190.57,190.5,43.03518973]
[1739377882462,40.77318973,190.53,190.46,43.03518973]
[1739377882780,43.03518973,190.51,190.45,5.2507]
[1739377882981,43.03518973,190.51,190.45,48.28588973]
[1739377883275,43.03518973,190.53,190.47,43.03518973]
[1739377883454,43.03518973,190.52,190.45,48.28588973]
[1739377883656,26.50860307,190.5,190.45,5.2507]
[1739377883856,26.50860307,190.49,190.44,5.2509]
[1739377884094,26.50860307,190.45,190.42,5.2514]
[1739377884299,26.50860307,190.43,190.4,5.2519]
[1739377884481,26.50860307,190.42,190.4,5.2519]
[1739377884807,26.50860307,190.43,190.4,5.2519]
[1739377884990,26.50860307,190.42,190.39,5.3153]
[1739377885780,26.50860307,190.43,190.39,0.063]
[1739377886806,26.50860307,190.42,190.39,0.063]
[1739377887701,26.50860307,190.41,190.39,0.063]
[1739377887908,26.50860307,190.4,190.39,0.063]
[1739377888690,53.01720614,190.4,190.39,0.063]
[1739377889000,26.50860307,190.4,190.39,0.063]
[1739377889692,56.14516614,190.4,190.39,0.063]
[1739377890010,29.13460307,190.4,190.39,0.063]
[1739377890490,69.55701467,190.4,190.39,0.063]
[1739377890809,13.91380853,190.39,190.36,0.063]
[1739377891007,33.91380853,190.37,190.36,0.063]
[1739377891187,60.4224116,190.37,190.36,0.063]
[1739377891794,46.50860307,190.37,190.36,0.063]
[1739377893210,26.50860307,190.37,190.36,0.063]
[1739377893414,27.01056307,190.37,190.36,0.063]
[1739377893720,29.63696307,190.37,190.36,0.063]
[1739377894415,43.0488116,190.37,190.26,13.1397]
[1739377894790,26.50860307,190.28,190.25,5.2562]
[1739377894992,26.50860307,190.27,190.25,5.2562]
[1739377895218,26.50860307,190.26,190.25,5.2562]
[1739377895620,26.50860307,190.28,190.25,5.2562]
[1739377895831,26.50860307,190.3,190.25,5.2562]
[1739377896193,26.50860307,190.28,190.23,13.1417]
[1739377896415,26.50860307,190.27,190.24,5.2565]
[1739377897192,26.50860307,190.28,190.23,13.1417]
[1739377897418,26.50860307,190.29,190.23,39.65030307]
[1739377897728,26.50860307,190.33,190.27,26.50860307]
[1739377897902,26.50860307,190.32,190.26,46.50860307]
[1739377898102,26.50860307,190.33,190.27,26.50860307]
[1739377898803,26.50860307,190.33,190.28,5.2554]
[1739377899005,26.50860307,190.32,190.28,5.2554]
[1739377899699,26.50860307,190.32,190.26,46.50860307]
[1739377899899,26.50860307,190.32,190.27,5.2556]
[1739377900128,26.50860307,190.34,190.27,31.76420307]
[1739377900425,26.50860307,190.36,190.29,26.50860307]
[1739377900613,26.50860307,190.35,190.29,26.50860307]
[1739377900811,26.50860307,190.33,190.27,19.49820767]
[1739377901205,26.50860307,190.33,190.27,46.00681074]
[1739377901406,26.50860307,190.32,190.27,18.3948]
[1739377901717,26.50860307,190.3,190.27,18.3948]
[1739377901922,26.50860307,190.31,190.27,18.3948]
[1739377902123,26.50860307,190.33,190.27,44.90340307]
[1739377902315,26.50860307,190.33,190.27,18.3948]
[1739377902509,26.50860307,190.33,190.27,44.90340307]
[1739377902709,26.50860307,190.34,190.27,44.90340307]
[1739377902909,26.50860307,190.34,190.28,26.50860307]
[1739377903215,26.50860307,190.33,190.27,44.90340307]
[1739377903419,26.50860307,190.32,190.27,18.3948]
[1739377903625,26.50860307,190.29,190.27,5.2556]
[1739377904136,26.50860307,190.28,190.26,5.2559]
[1739377904310,26.50860307,190.27,190.26,5.2559]
[1739377904636,26.50860307,190.27,190.25,5.3191]
[1739377905429,26.50860307,190.27,190.25,0.063]
[1739377905605,26.50860307,190.26,190.25,0.063]
[1739377911734,27.01056307,190.26,190.25,0.063]
[1739377911921,29.63846307,190.26,190.25,0.063]
[1739377913238,0.50196,190.22,190.19,0.063]
[1739377913418,53.01720614,190.2,190.19,0.063]
[1739377913614,26.50860307,190.2,190.19,0.063]
[1739377913812,29.13740307,190.2,190.19,0.063]
[1739377914018,26.50860307,190.2,190.19,0.063]
[1739377915634,29.13740307,190.2,190.19,0.063]
[1739377915833,56.14796614,190.2,190.19,0.063]
[1739377916024,13.91380853,190.19,190.18,0.063]
[1739377916226,40.4224116,190.19,190.18,0.063]
[1739377917132,29.13750307,190.19,190.18,0.063]
[1739377917448,26.50860307,190.21,190.18,0.063]
[1739377917618,26.50860307,190.26,190.19,26.50860307]
[1739377917942,2.6273,190.31,190.19,20.0]
[1739377918147,26.50860307,190.24,190.19,20.0]
[1739377918328,26.50860307,190.24,190.18,26.57160307]
[1739377918527,26.50860307,190.23,190.18,0.063]
[1739377918751,26.50860307,190.22,190.18,0.063]
[1739377918919,26.50860307,190.21,190.18,5.3211]
[1739377919347,26.50860307,190.22,190.18,5.3211]
[1739377920049,26.50860307,190.22,190.18,0.063]
[1739377920450,26.50860307,190.23,190.18,0.063]
[1739377920757,26.50860307,190.27,190.2,26.50860307]
[1739377920931,26.50860307,190.26,190.19,26.50860307]
[1739377921133,26.50860307,190.26,190.2,1.10374966]
[1739377921332,26.50860307,190.26,190.19,27.6123138]
[1739377921531,26.50860307,190.26,190.2,0.063]
[1739377921763,26.50860307,190.26,190.2,46.57160307]
[1739377922052,26.50860307,190.23,190.2,0.063]
[1739377922255,26.50860307,190.21,190.2,0.063]
[1739377922623,26.50860307,190.25,190.2,0.063]
[1739377922832,26.50860307,190.24,190.2,0.063]
[1739377923037,26.50860307,190.26,190.2,26.57160307]
[1739377923362,26.50860307,190.23,190.2,0.063]
[1739377923565,0.50196,190.29,190.2,0.063]
[1739377923738,26.50860307,190.22,190.2,0.063]
[1739377924125,26.50860307,190.24,190.2,0.063]
[1739377924331,1.6596,190.34,190.2,0.063]
[1739377924332,26.50860307,190.26,190.2,0.063]
[1739377925449,26.50860307,190.23,190.2,5.3206]
[1739377925656,26.50860307,190.22,190.2,5.3206]
[1739377925844,26.50860307,190.23,190.2,5.3206]
[1739377926243,26.50860307,190.22,190.2,0.063]
[1739377926645,26.50860307,190.25,190.2,0.063]
[1739377926858,26.50860307,190.29,190.23,26.50860307]
[1739377927066,26.50860307,190.33,190.27,26.50860307]
[1739377927360,2.6265,190.37,190.25,6.5815]
[1739377927556,22.6265,190.37,190.26,1.10340051]
[1739377927738,26.50860307,190.32,190.25,7.68490051]
[1739377928056,26.50860307,190.31,190.25,7.68490051]
[1739377928261,26.50860307,190.28,190.26,5.2559]
[1739377928837,26.50860307,190.3,190.26,5.2559]
[1739377929040,26.50860307,190.31,190.26,5.2559]
[1739377929742,26.50860307,190.33,190.27,1.10333259]
[1739377930260,0.03,190.36,190.26,46.00763352]
[1739377930261,26.50860307,190.32,190.26,46.00763352]
[1739377930560,26.50860307,190.32,190.26,19.49903045]
[1739377930740,26.50860307,190.32,190.26,46.00763352]
[1739377931135,26.50860307,190.29,190.26,5.2559]
[1739377931367,26.50860307,190.3,190.26,5.2559]
[1739377932239,26.50860307,190.29,190.26,5.2559]
[1739377932961,26.50860307,190.33,190.26,46.00787565]
[1739377933149,26.50860307,190.34,190.28,26.50860307]
[1739377933347,0.03,190.36,190.31,26.50860307]
[1739377933769,0.03,190.36,190.3,20.0]
[1739377933770,26.53860307,190.36,190.3,21.10303291]
[1739377933939,0.03,190.33,190.3,21.10303291]
[1739377934139,0.03,190.33,190.31,31.76310307]
[1739377934362,0.03,190.33,190.32,27.6116501]
[1739377934534,0.03,190.33,190.32,41.02349863]
[1739377934939,0.03,190.36,190.32,41.02349863]
[1739377935164,0.03,190.36,190.34,13.41184853]
[1739377935461,0.03,190.36,190.34,27.61144649]
[1739377936166,0.03,190.36,190.34,1.10284342]
[1739377936363,26.50860307,190.35,190.27,5.2556]
[1739377936567,26.50860307,190.29,190.27,5.2556]
[1739377936859,26.50860307,190.31,190.27,5.2556]
[1739377937172,0.03,190.36,190.3,20.0]
[1739377937367,0.03,190.36,190.31,1.10307203]
[1739377937837,0.03,190.36,190.3,21.10303923]
[1739377938035,0.03,190.36,190.3,20.0]
[1739377938272,0.03,190.36,190.31,5.2545]
[1739377938468,0.03,190.36,190.31,31.76310307]
[1739377939169,0.03,190.36,190.31,5.2545]
[1739377939474,0.03,190.36,190.28,5.2554]
[1739377939475,26.50860307,190.32,190.28,5.2554]
[1739377939971,26.50860307,190.33,190.28,5.2554]
[1739377940168,26.53860307,190.36,190.29,27.61192177]
[1739377940398,26.53860307,190.36,190.28,44.90250307]
[1739377940399,26.50860307,190.35,190.28,44.90250307]
[1739377940669,26.50860307,190.32,190.28,18.3939]
[1739377940871,26.50860307,190.31,190.26,5.2559]
[1739377941073,0.03,190.36,190.26,5.2559]
[1739377941273,26.50860307,190.33,190.27,27.61195193]
[1739377941452,26.50860307,190.35,190.28,27.61190109]
[1739377941762,26.50860307,190.35,190.29,26.50860307]
[1739377941956,0.03,190.36,190.26,18.3958]
[1739377941957,0.03,190.36,190.31,26.50860307]
[1739377942159,0.03,190.36,190.32,27.6116951]
[1739377942365,0.03,190.36,190.33,26.50860307]
[1739377942876,0.03,190.36,190.35,26.50860307]
[1739377943261,0.03,190.36,190.35,51.7043516]
[1739377944789,0.03,190.38,190.37,33.41184853]
[1739377945096,0.03,190.38,190.37,61.0230562]
[1739377945299,0.0001,190.38,190.37,61.5250162]
[1739377945460,0.0001,190.38,190.37,93.1950162]
[1739377945959,26.53860307,190.53,190.41,20.0]
[1739377946161,0.03,190.53,190.49,26.50860307]
[1739377946481,0.03,190.53,190.48,26.50860307]
[1739377946884,0.03,190.53,190.47,46.50860307]
[1739377947081,26.50860307,190.51,190.48,5.2498]
[1739377947286,26.50860307,190.49,190.41,26.50860307]
[1739377947465,26.50860307,190.48,190.42,5.2515]
[1739377947796,26.50860307,190.45,190.42,5.2515]
[1739377948296,26.50860307,190.44,190.39,5.2523]
[1739377948584,26.50860307,190.42,190.39,5.2523]
[1739377948992,26.50860307,190.44,190.37,31.76150307]
[1739377949285,26.50860307,190.47,190.4,46.50860307]
[1739377949490,26.50860307,190.47,190.4,47.61115744]
[1739377949871,26.50860307,190.48,190.42,26.50860307]
[1739377950188,26.53860307,190.53,190.46,26.50860307]
[1739377950405,26.53860307,190.53,190.49,26.50860307]
[1739377950406,0.03,190.53,190.49,26.50860307]
[1739377950687,0.03,190.53,190.52,20.0]
[1739377950891,0.03,190.53,190.52,21.10184361]
[1739377951063,0.03,190.53,190.52,26.35054361]
[1739377952083,0.03,190.53,190.52,52.85914668]
[1739377953980,0.03,190.53,190.52,51.75730307]
[1739377954173,0.03,190.53,190.52,25.2487]
[1739377956214,0.03,190.53,190.5,5.2493]
[1739377956703,26.53860307,190.53,190.5,5.2493]
[1739377956905,0.03,190.53,190.5,5.2493]
[1739377957405,26.50860307,190.51,190.48,5.2496]
[1739377957608,26.50860307,190.49,190.43,26.50860307]
[1739377957775,0.03,190.53,190.42,5.2515]
[1739377957776,26.50860307,190.48,190.42,5.2515]
[1739377957983,26.50860307,190.49,190.42,31.76010307]
[1739377958177,26.50860307,190.5,190.44,5.2509]
[1739377958515,26.50860307,190.49,190.44,5.2509]
[1739377959008,26.50860307,190.5,190.44,5.2509]
[1739377959224,26.50860307,190.49,190.44,5.2509]
[1739377959525,26.50860307,190.51,190.44,32.8619298]
[1739377959822,26.50860307,190.51,190.45,26.50860307]
[1739377960012,26.50860307,190.5,190.44,5.2509]
[1739377961806,26.50860307,190.47,190.42,5.2514]
[1739377962012,26.50860307,190.48,190.42,5.2514]
[1739377962430,26.50860307,190.46,190.42,5.2514]
[1739377962597,26.50860307,190.45,190.38,32.90710307]
[1739377962802,26.50860307,190.47,190.4,26.50860307]
[1739377963409,26.50860307,190.47,190.41,5.2518]
[1739377964013,26.50860307,190.45,190.41,5.2518]
[1739377964319,26.50860307,190.43,190.41,5.2518]
[1739377964521,26.50860307,190.42,190.38,5.2526]
[1739377964819,26.50860307,190.41,190.38,5.2526]
[1739377965206,2.625,190.47,190.38,5.2526]
[1739377965514,26.50860307,190.41,190.38,5.2526]
[1739377966603,26.50860307,190.4,190.38,5.2526]
[1739377967198,26.50860307,190.4,190.37,13.38477391]
[1739377967395,26.50860307,190.38,190.35,5.2532]
[1739377968120,26.50860307,190.39,190.35,5.2532]
[1739377968327,26.50860307,190.38,190.32,5.2543]
[1739377968530,26.50860307,190.36,190.32,5.2543]
[1739377968715,2.6262,190.39,190.32,5.2543]
[1739377968716,26.50860307,190.35,190.32,5.2543]
[1739377969101,2.6262,190.39,190.27,0.063]
[1739377969321,26.50860307,190.3,190.28,5.2554]
[1739377970334,13.91380853,190.38,190.27,0.063]
[1739377970335,26.50860307,190.29,190.27,0.063]
[1739377970510,26.50860307,190.28,190.27,0.063]
[1739377970831,26.50860307,190.32,190.27,0.063]
[1739377971527,26.50860307,190.34,190.28,26.50860307]
[1739377971903,26.50860307,190.32,190.27,0.063]
[1739377972239,26.50860307,190.33,190.27,0.063]
[1739377972536,26.50860307,190.33,190.27,5.3186]
[1739377972735,26.50860307,190.34,190.28,1.10332138]
[1739377973040,26.50860307,190.35,190.28,27.61184054]
[1739377973332,26.50860307,190.33,190.27,44.96640307]
[1739377973535,26.50860307,190.32,190.27,18.4578]
[1739377973718,26.50860307,190.33,190.27,18.4578]
[1739377974025,26.50860307,190.32,190.27,5.3186]
[1739377975139,26.50860307,190.33,190.27,5.3186]
[1739377975341,26.50860307,190.32,190.27,5.3186]
[1739377975525,26.50860307,190.32,190.27,0.063]
[1739377975942,26.50860307,190.32,190.27,20.063]
[1739377976252,26.50860307,190.33,190.27,0.063]
[1739377977125,26.50860307,190.32,190.27,0.063]
[1739377977542,26.50860307,190.31,190.27,0.063]
[1739377977747,26.50860307,190.32,190.27,0.063]
[1739377978254,26.50860307,190.33,190.28,1.10335499]
[1739377978550,26.50860307,190.29,190.27,0.063]
[1739377978842,1.0,190.37,190.27,0.063]
[1739377978843,26.50860307,190.28,190.27,0.063]
[1739377979721,82.3,190.38,190.27,0.063]
[1739377979722,26.50860307,190.29,190.27,0.063]
[1739377979925,26.50860307,190.32,190.29,20.0]
[1739377980125,26.50860307,190.37,190.31,26.50860307]
[1739377980318,26.50860307,190.38,190.32,27.61168654]
[1739377980523,26.50860307,190.38,190.31,19.49391181]
[1739377980743,26.50860307,190.38,190.32,27.61167942]
[1739377981020,0.03,190.4,190.37,26.50860307]
[1739377981341,0.03,190.4,190.39,26.50860307]
[1739377982437,0.03,190.4,190.39,31.76090307]
[1739377982851,0.03,190.4,190.39,5.2523]
[1739377983736,26.53860307,190.4,190.38,0.063]
[1739377983958,26.50860307,190.39,190.38,0.063]
[1739377984132,0.03,190.4,190.38,0.063]
[1739377984332,0.03,190.4,190.39,1.10272398]
[1739377985232,0.03,190.4,190.39,7.42132398]
[1739377985431,0.03,190.4,190.39,39.18222705]
[1739377985627,0.03,190.4,190.39,11.5709]
[1739377986055,0.03,190.4,190.39,38.07950307]
[1739377986632,26.50860307,190.48,190.42,20.0]
[1739377986838,0.03,190.56,190.39,51.6168416]
[1739377986839,26.50860307,190.51,190.44,26.50860307]
[1739377987229,26.50860307,190.46,190.43,20.0]
[1739377987451,26.50860307,190.44,190.39,18.3832]
[1739377987633,26.50860307,190.45,190.39,45.99447513]
[1739377987832,26.50860307,190.49,190.42,46.50860307]
[1739377988054,0.03,190.53,190.42,21.10243554]
[1739377988253,0.03,190.53,190.43,13.53733853]
[1739377988454,0.03,190.53,190.44,1.10229184]
[1739377988647,0.03,190.53,190.43,18.3793]
[1739377989139,26.50860307,190.49,190.43,44.88790307]
[1739377989345,26.50860307,190.49,190.43,18.3793]
[1739377989734,26.50860307,190.47,190.43,18.3793]